Cogmind - Beta 13 @@@ ROGUE MODE // 2024.04.12 @ 09:23:43 Player: JTMusky Result: Destroyed by KY-RBI(R) with Subdweller Shrapnel Launcher Performance ------------- Evolutions (0) 0 Regions Visited (2) 400 Robots Destroyed (9) 45 Value Destroyed (181) 181 Prototype IDs (12) 240 Alien Tech Used (0) 0 Bonus (0) 0 TOTAL SCORE: 866 Bonus ------- None Cogmind --------- Core Integrity 0/250 Matter 250/300 Energy 130/150 System Corruption 0% Temperature Cool (0) Movement Rolling (110) Location -10/Subcaves Parts ------- > --- POWER (1) -------- Light Angular Momentum Engine > --- PROPULSION (2) --- Subdweller Monowheel Subdweller Monowheel > --- UTILITY (2) ------ Medium Storage Unit Makeshift Light Armor Plating > --- WEAPON (2) ------- Beamcaster Datajack > --- INVENTORY (10) --- Light Angular Momentum Engine Arachnoskeleton Subdweller Monowheel Small Battery (100) Medium Matter Pod (100) Subdweller Optics Scrap Shield Peak State ------------ > --- POWER ------------ Light Angular Momentum Engine > --- PROPULSION ------- Subdweller Monowheel Subdweller Monowheel > --- UTILITY ---------- Medium Storage Unit Makeshift Light Armor Plating > --- WEAPON ----------- Beamcaster Datajack > --- INVENTORY -------- Light Angular Momentum Engine Arachnoskeleton Subdweller Monowheel Small Battery Medium Matter Pod Subdweller Optics Scrap Shield [Rating: 23] Favorites ----------- Power Ion Engine Engine Ion Engine Propulsion Aluminum Leg Treads Light Treads Leg Aluminum Leg Wheel Wheel Utility Medium Storage Unit Device Heat Sink Storage Medium Storage Unit Protection Makeshift Light Armor Plating Weapon Datajack Energy Gun Beamcaster Energy Cannon Beam Cannon Ballistic Gun Assault Rifle Special Weapon Welding Torch Special Melee Weapon Datajack Build | -11 -10 -10 ------- Run | Yrd Mat Sub Slots Evolved . | . . . Power . | . . . Propulsion . | . . . Utility . | . . . Weapon . | . . . Parts Attached 38 | 6 20 12 Power 3 | 1 1 1 Engine 3 | 1 1 1 Core . | . . . Reactor . | . . . Propulsion 11 | 2 4 5 Treads 2 | . 2 . Leg 2 | 2 . . Wheel 7 | . 2 5 Hover . | . . . Flight . | . . . Utility 14 | 1 9 4 Device 1 | . 1 . Storage 12 | 1 8 3 Processor . | . . . Hackware . | . . . Protection 1 | . . 1 Artifact . | . . . Weapon 10 | 2 6 2 Energy Gun 2 | . . 2 Energy Cannon 1 | . 1 . Ballistic Gun 5 | 2 3 . Ballistic Cannon . | . . . Launcher . | . . . Special Weapon 1 | . 1 . Impact Weapon . | . . . Slashing Weapon . | . . . Piercing Weapon . | . . . Special Melee Weapon 1 | . 1 . Unidentified Prototypes . | . . . Parts Lost 2 | . 2 . Power 1 | . 1 . Propulsion 1 | . 1 . Utility . | . . . Weapon . | . . . Highest Loss Streak 2 | . 2 . To Critical Strikes . | . . . Average Slot Usage (%) 97 | . 97 99 Engine 13 | . 13 14 Treads 4 | . 6 . Leg 8 | . 11 . Wheel 12 | . 8 27 Device 7 | . 9 . Storage 16 | . 17 14 Protection 3 | . . 13 Energy Gun 2 | . . 9 Energy Cannon 3 | . 3 4 Ballistic Gun 7 | . 9 . Special Weapon 2 | . 3 . Special Melee Weapon 12 | . 12 14 Naked Turns . | . . . Heaviest Build 99 | 12 22 99 Greatest Support 40 | 20 40 40 Greatest Overweight (x) 9 | 2 6 9 Average Overweight (x) . | . . . Largest Inventory Capacity 25 | 8 20 25 Average Capacity 9 | 7 9 10 Most Carried 12 | 6 10 12 Average Carried 9 | 2 9 9 Final Capacity 10 | 8 10 10 Final Carried 10 | 6 10 10 Class Distribution -------------------- 84% | Mutant 15% | Scavenger-Mutant Dominant Class ---------------- Mutant | -10/Materials Scavenger-Mutant | -10/Subcaves Resources | -11 -10 -10 ----------- Run | Yrd Mat Sub Matter Collected 565 | 242 253 70 Remotely . | . . . Salvage Created 215 | . 179 36 Parts 14 | . 14 . Haulers Intercepted . | . . . Recyclers Shooed . | . . . Parts Field Recycled . | . . . Retrieved Matter . | . . . Parts Self-Destructed . | . . . Prevented . | . . . Kills | -11 -10 -10 ------- Run | Yrd Mat Sub Combat Hostiles Destroyed 9 | . 8 1 Guns 7 | . 7 . Cannons 2 | . 1 1 Classes Destroyed 3 | . 2 1 Swarmer 6 | . 6 . Grunt 2 | . 2 . Subdweller 1 | . . 1 Best Kill Streak 4 | . 4 1 Combat Bots Only 4 | . 4 1 Max Kills in Single Turn 2 | . 2 1 Gunslinging 1 | . 1 . Exploded . | . . . Melee . | . . . Uniques/NPCs Destroyed . | . . . Combat | -11 -10 -10 -------- Run | Yrd Mat Sub Hostile Shots Fired 72 | . 64 8 Missed 12 | . 10 2 Damage Taken 909 | . 505 404 Core 262 | . 159 103 Absorbed by Shields . | . . . Core Remaining (%) 100 | 100 . . Volleys Fired 65 | . 43 22 Largest 2 | . 2 1 Hottest 75 | . 40 75 Shots Fired 69 | . 47 22 Gun 33 | . 26 7 Cannon 15 | . . 15 Launcher . | . . . Special 21 | . 21 . Kinetic 26 | . 26 . Thermal 43 | . 21 22 Explosive . | . . . Electromagnetic . | . . . Robot Hit Streak 8 | . 5 8 Robot Miss Streak 2 | . 2 1 Penetration Max . | . . . Secondary Targets 1 | . 1 . Max Gunslinging Chain 1 | . 1 . Shots Hit Robots 62 | . 46 16 Core Hits 16 | . 13 3 Critical Kills . | . . . Critical Parts Destroyed . | . . . Critical Strikes . | . . . Melee Attacks 21 | . 21 . Impact . | . . . Slashing . | . . . Piercing . | . . . Sneak Attacks 16 | . 16 . Combat Hostiles . | . . . Follow-up Attacks . | . . . Damage Inflicted 543 | . 250 293 Guns 286 | . 222 64 Cannons 229 | . . 229 Explosions . | . . . Melee . | . . . Ramming . | . . . Kinetic 222 | . 222 . Thermal 321 | . 28 293 Explosive . | . . . Electromagnetic . | . . . Impact . | . . . Slashing . | . . . Piercing . | . . . Highest Corruption . | . . . Average Corruption . | . . . Corruption Purged . | . . . Corruption Blocked . | . . . Overload Shots . | . . . Overflow Damage . | . . . Projectiles . | . . . Explosions . | . . . Melee . | . . . Knockbacks . | . . . Impact . | . . . Kinetic . | . . . Secondary . | . . . Self-Inflicted Damage . | . . . Shots . | . . . Rammed . | . . . Targets Rammed . | . . . Kicked . | . . . Crushed . | . . . Highest Temperature 16 | . . 16 Average Temperature 8 | . . 8 Received Heat Transfer 81 | . 75 6 Siege Activations . | . . . Robots Corrupted . | . . . Combat Hostiles . | . . . Parts Fried . | . . . Impact Corruptions . | . . . Robots Melted . | . . . Combat Hostiles . | . . . Parts Melted 1 | . 1 . Heat Transferred 817 | . 225 592 Parts Sabotaged . | . . . Parts Stolen . | . . . Parts Stripped . | . . . Power Chain Reactions . | . . . Alert | -11 -10 -10 ------- Run | Yrd Mat Sub Peak Influence 130 | . 130 . Initial . | . . . Average 43 | . 45 . Maximum Alert Level . | . . . Low Security (%) 100 | 100 100 . Level 1 . | . . . Level 2 . | . . . Level 3 . | . . . Level 4 . | . . . Level 5 . | . . . High Security . | . . . Max Security . | . . . Squads Dispatched 1 | . 1 . Investigation . | . . . Extermination . | . . . Reinforcement 1 | . 1 . Assault . | . . . Garrison . | . . . Intercept . | . . . Searches Triggered . | . . . Construction Impeded . | . . . Haulers Reinforced . | . . . Active Scanning Responses . | . . . Cargo Convoy Interrupts . | . . . Stealth | -11 -10 -10 --------- Run | Yrd Mat Sub Distress Signals 1 | . 1 . Communications Jammed . | . . . Distress Signals . | . . . Times Spotted 29 | . 22 7 Peak Tracking Total 3 | . 3 3 Tactical Retreats 1 | . 1 . Traps | -11 -10 -10 ------- Run | Yrd Mat Sub Traps Triggered 1 | . . 1 Indirectly . | . . . Trap Hack Attempts 9 | . 9 . Triggered . | . . . Disarmed 1 | . 1 . Reprogrammed . | . . . Reused . | . . . Traps Extracted . | . . . Installed . | . . . Triggered . | . . . Machines | -11 -10 -10 ---------- Run | Yrd Mat Sub Machines Disabled 1 | . . 1 Max in Single Turn 1 | . . 1 Machines Repaired . | . . . Machines Dismantled . | . . . Machines Sabotaged . | . . . Overloaded Fab Kills . | . . . Hacking | -11 -10 -10 --------- Run | Yrd Mat Sub Machines Accessed 10 | . 9 1 Terminals 8 | . 8 . Fabricators . | . . . Repair Stations . | . . . Recycling Units 1 | . 1 . Scanalyzers . | . . . Garrison Access . | . . . Total Hacks 31 | . 22 9 Successful 19 | . 10 9 Failed 12 | . 12 . Catastrophic 2 | . 2 . Database Lockouts . | . . . Manual 4 | . 1 3 Terminals 20 | . 20 . Fabricators . | . . . Repair Stations . | . . . Recycling Units 2 | . 2 . Scanalyzers . | . . . Garrison Access . | . . . Terminal Hacks 18 | . 9 9 Record 11 | . 3 8 Robot Analysis 1 | . 1 . Prototype ID Bank 1 | . 1 . Alert Level 1 | . 1 . Locate Traps 1 | . 1 . Dispatch Records 1 | . 1 . Registered Components 1 | . 1 . Derelict Proto ID Bank 1 | . . 1 Fabricator Hacks . | . . . Repair Station Hacks . | . . . Recycling Unit Hacks 1 | . 1 . Retrieve Matter 1 | . 1 . Scanalyzer . | . . . Garrison Access Hacks . | . . . Unauthorized Hacks . | . . . Terminals . | . . . Fabricators . | . . . Repair Stations . | . . . Recycling Units . | . . . Scanalyzers . | . . . Garrison Access . | . . . Data Cores Recovered . | . . . Used . | . . . Hacking Detections 9 | . 9 . Full Trace Events 1 | . 1 . Feedback Events . | . . . Feedback Blocked . | . . . Robot Schematics Acquired . | . . . Robots Built . | . . . Authchips . | . . . Time . | . . . Total Robot Build Rating . | . . . Part Schematics Acquired . | . . . Parts Built . | . . . Authchips . | . . . Time . | . . . Total Part Build Rating . | . . . Parts Repaired . | . . . Time . | . . . Parts Recycled . | . . . Recycled Matter . | . . . Retrieved Matter 236 | . 236 . Retrieved Components . | . . . Parts Scanalyzed . | . . . Part Schematics Acquired . | . . . Parts Damaged . | . . . Bothacking | -11 -10 -10 ------------ Run | Yrd Mat Sub Used RIF Installer . | . . . Robots Hacked 8 | . 8 . Non-combat 6 | . 6 . Combat 2 | . 2 . Robot Hacks Applied 13 | . 13 . parse_system 7 | . 7 . no_distress 5 | . 5 . find_recycling 1 | . 1 . Relay Couplers Released . | . . . Fabnet Peak Effective % . | . . . Robots Rewired . | . . . Allies Hacked . | . . . Hacks Repelled . | . . . Allies | -11 -10 -10 -------- Run | Yrd Mat Sub Total Allies . | . . . Largest Group . | . . . Highest-Rated Group . | . . . Highest-Rated Ally . | . . . Total Orders . | . . . Ally Attacks . | . . . Total Damage . | . . . Kills . | . . . Allies Corrupted . | . . . Allies Melted . | . . . Intel | -11 -10 -10 ------- Run | Yrd Mat Sub Robot Analysis Total 1 | . 1 . Derelict Logs Recovered . | . . . Drone Launches . | . . . Drone Recoveries . | . . . Exploration | -11 -10 -10 ------------- Run | Yrd Mat Sub Turns Passed 2189 | 78 1611 500 Spaces Moved 1620 | 57 1178 385 Core 13 | 10 2 1 Treads 223 | . 223 . Legs 477 | 47 430 . Wheels 907 | . 523 384 Hover . | . . . Flight . | . . . Fastest Speed 50 | 50 80 80 Average Speed 114 | 111 116 105 Slowest Speed 500 | 150 350 500 Overloaded Moves . | . . . Propulsion Burnouts . | . . . Robots Hopped . | . . . Cave-ins Triggered . | . . . Exploration Rate (%) 40 | 5 99 18 Regions Visited 2 Branch Regions 1 Pre-discovered Areas . | . . . Known Exits Taken . | . . . Unknown Exits Taken 2 | 1 1 . Scrap Searched . | . . . Spaces Dug . | . . . Terrain Destroyed . | . . . Melee . | . . . Projectile . | . . . AOE . | . . . Terrain Rammed . | . . . Walls Destroyed . | . . . Machines Disabled . | . . . Actions | -11 -10 -10 --------- Run | Yrd Mat Sub Total 1877 | 68 1350 459 Wait 56 | . 49 7 Move 1618 | 56 1177 385 Hop . | . . . Pick Up 32 | 6 14 12 Fast Attach 20 | 6 7 7 Attach 4 | . 4 . Detach 3 | . 3 . Swap 14 | . 9 5 Drop 35 | . 14 21 Fire 65 | . 43 22 Melee 21 | . 21 . Ram . | . . . Kick . | . . . Crush . | . . . Escape Stasis . | . . . Rewire . | . . . Trap 9 | . 9 . Miscellaneous . | . . . Route ------- -11/Scrapyard -10/Materials (discovered 5 exits: [*Mat x3] / [*Min] / *Sub) -10/Subcaves History --------- Turn | Location | Event 5 | -11/Scrapyard | Discovered new exit (range 16) 79 | -11/Scrapyard | Entered Materials 312 | -10/Materials | Build established: Mutant 446 | -10/Materials | Discovered new exit (range 9) 642 | -10/Materials | Core integrity fell below 50% 1028 | -10/Materials | Discovered new exit (range 15) 1282 | -10/Materials | Discovered new exit (range 10) 1466 | -10/Materials | Discovered new exit (range 12) 1606 | -10/Materials | Discovered new exit (range 13) 1690 | -10/Materials | Entered Subcaves 1691 | -10/Subcaves | Shifting Twisted Machinery released Flamer 1691 | -10/Subcaves | Shifting Twisted Machinery released Sub. Power Source 1710 | -10/Subcaves | Shifting Twisted Machinery released Mak. Light Armor Plating 1748 | -10/Subcaves | Shifting Twisted Machinery released Piercing Trap 1785 | -10/Subcaves | Ambushed by swarm of Subdwellers 1830 | -10/Subcaves | Lost 3 allies 1922 | -10/Subcaves | Visited 4L-MR0's lab 1955 | -10/Subcaves | Found Arachnoskeleton 2135 | -10/Subcaves | Build established: Scavenger-Mutant 2155 | -10/Subcaves | A swath of the cavern ceiling suddenly collapsed 2182 | -10/Subcaves | Core integrity fell below 20% 2188 | -10/Subcaves | Ambushed by Subdweller buried in earth 2190 | -10/Subcaves | Destroyed by KY-RBI(R) with Subdweller Shrapnel Launcher Last Messages --------------- last prototype ended up, probably tossed aside somewhere as if it were useless junk..." 01976_ Subatomizers dissect the Sub. Monowheel. 01987_ Subatomizers dissect the Sub. Monowheel, destroying it. 02061_ Dropped Sub. Optics. 02062_ Acquired Huge Storage Unit. 02065_ XQ-6ID(u) tweaks Twisted Machinery. 02065_ Acquired Hcp. Storage Unit. 02068_ XQ-6ID(u) tweaks Twisted Machinery. 02070_ Acquired Sub. Optics. 02071_ Dropped Huge Storage Unit. 02076_ Dropped Hcp. Storage Unit. 02076_ Extracted 2 energy. 02077_ Acquired Sml. Battery. A swath of the cavern ceiling suddenly collapses. 02185_ KY-RBI(R) affixes Scrap Shield Fragment to Scrap Shield. 02189_ OH-SVS(R): "GOODGOOD!" Map ----- +----------------------------------------------------+ | | | | | | | ?????????????????????????????????????????????????? | | ?????????????????????????????????????????????????? | | ?????????????????????????????????????????????????? | | ?????????????????????????????????????????????????? | | ?????????????????????????????????????????????????? | | ????????????????????????????????????????#####????? | | ???????????????????????????????????????##" "###### | | ???????????????????????????????????????# ""##"" | | ???????????????????????????????????????# """"# | | ???????????????????????????????????????#"""""+ "X | | ???????????????????????????????????????#" "" #"""" | | ?????????????????????#####?????????????#" " ##### | | ??????????????????????$#$##????????????#"" #?### | | ?????????????????????? &$?????????????# """###"# | | ???????????????????####R #####???????####" = #%=%" | | ??????????????????## #$ #???##### ##"&[[ [%!# | | ??????????????????#; ;##?## # %! !*& | | ????????????????### ## # ######"&[% | | ????????????????# ### &!! * | | ????????????????## !=&=|! | | ?????????????????# ;### ###&&![ | | ???????? ?????## ; ; ## #### ! | | ??????? ?????# # @ R ####### ### | | ???????# ????## ## ; #?????## | | ????????# ???### #### ; #??###### | | ????????# ?## # ; #?## ### ## | | ????????# #### ####### ### | | ????????# # # ## #;# #?## ## | | ????????# # # #####?##??# ###### | | ?????????# # #???????## ########????# | | ?????????### #### ##??????## #???????????? | | ???????????????### #?####?## #???????????? | | ????????????#### # ### ### #???????????? | | ????????????# #???????????? | | ???????????# #???????????? | | ?????????# ##### ### ### ### ##???????????? | | ????????# #????#####?####?###?###????????????? | | ????????# ???????????????????????????????????? | | ????????# ????????????????????????????????????? | | ????????## #?????????????????????????????????????? | | ?????????##??????????????????????????????????????? | | ?????????????????????????????????????????????????? | | ?????????????????????????????????????????????????? | | ?????????????????????????????????????????????????? | | ?????????????????????????????????????????????????? | | ?????????????????????????????????????????????????? | | ?????????????????????????????????????????????????? | +----------------------------------------------------+ Best States ------------- Heat Dissipation 35 Energy Generation 18 Energy Capacity 350 Matter Stores 300 Matter Capacity 300 Sight Range 16 Terrain Scan Density 10 Armor Coverage 100 Evasion (%) 55 Recoil Reduction 2 Item Schematics ----------------- None Robot Schematics ------------------ None Fabricated ------------ Nothing Alien Tech Used ----------------- None Achievements -------------- Librarian Challenges ------------ None Game ------ Seed ReactivePhasingThermoblaster Manual? 0 Play Time 01:32:50 Cumulative 5.4 hours Start 2024.04.12 @ 06:38:25 End 2024.04.12 @ 09:23:43 Sessions 3 Manual Loads 0 Difficulty Rogue Special Mode None Game No. 4 Rogue 4 Adventurer 0 Explorer 0 Win Type - Total 0 Types 0/0/0/0/0/0/0/0/0 Lore% 4 Gallery% 7 Achievement% 5 Wizard Run 0 Options --------- Layout 2 ASCII 1 Keyboard 1 Movement Vi Keybinds 0 Fullscreen 2 Font 40/SmallcapsGlow Map View 50x44 Zoom Use 0% Tactical HUD 1 Map Filters NONE Filters NONE Steam 0 RUN: 6b3ae559-fbe9-453b-baab-feacc57eddd9